{"text_format":"3","workbook":"xlsx","n_sheets":4,"sheets":["Bill","Cables","Busbars","Tools,Equ & Detection Services"],"not_rendered":{"external_links":22,"defined_names":957},"read":"whole","date_system":"1900"}

{"sheet":"Bill","index":0,"n_rows":84,"n_cols":8,"rows_kept":84,"merged":[[83,2,84,2],[83,7,84,7]]}
[null,null," "]
[{"$nulls":7},"2025-05-30"]
[]
[null,"PROJECT: SUPPLY, INSTALLATION AND REPAIRS OF CABLES AT KUSILE POWER STATION ON AN AS AND WHEN REQUIRED BASIS FOR THE PERIOD OF FIVE (5) YEARS REV. 3"]
[]
[null,"ITEM NO.","DESCRIPTION","UNIT","NO. OFF","QUANTITY","RATE","AMOUNT"]
[]
[null,null,"ITEM 1"]
[null,1,"PRELIMINARIES AND GENERAL"]
[]
[null,null,"FIXED"]
[null,"1.1","Establishment of Facilities on the Site (Office containers, ablutions and JoJo tank)","Once off",{"v":1,"d":"1.00"},{"v":1,"d":"1.00"}]
[null,"1.2","De-estabhlishment of Facilities on the Site (Office containers and ablutions)","Once off",{"v":1,"d":"1.00"},{"v":1,"d":"1.00"}]
[null,"1.3","Safety File","Yearly",{"v":1,"d":"1.00"},{"v":1,"d":"1.00"}]
[null,"1.4","PPE","Yearly",{"v":5,"d":"5.00"},{"v":19,"d":"19.00"}]
[null,"1.5","Entry Medicals","Yearly",{"v":5,"d":"5.00"},{"v":19,"d":"19.00"}]
[null,"1.6","Exit Medicals","Yearly",{"v":5,"d":"5.00"},{"v":19,"d":"19.00"}]
[null,"1.7","Security Clearance Certification","Yearly",{"v":5,"d":"5.00"},{"v":19,"d":"19.00"}]
[null,1.8,"Tools and testing equipment, and Detection Services","Once off",{"v":1,"d":"1.00"},{"v":1,"d":"1.00"}]
[null,1.9,"2700lt Water Tank JoJoGreen and JoJo 0.37kW Basic Booster Pump & Connector Kit","Once off",{"v":1,"d":"1.00"},{"v":1,"d":"1.00"}]
[]
[null,null,"TIME RELATED"]
[null,"1.10","Site Office Containers: 12m including 2 x standard AC Units (2 Off)","Monthly",{"v":2,"d":"2.00"},{"v":60,"d":"60.00"}]
[null,"1.11","Site Storage Container: size 3 x 6m (2 Off)","Monthly",{"v":2,"d":"2.00"},{"v":60,"d":"60.00"}]
[null,"1.12","Ablution: 3m x 6m - 6 Toilet Split M/F (1 Off)","Monthly",{"v":1,"d":"1.00"},{"v":60,"d":"60.00"}]
[null,"1.13","Site Bakkie (4x2 Double Cab Bakkie) (3 Off)","Monthly",{"v":3,"d":"3.00"},{"v":60,"d":"60.00"}]
[null,"1.14","11 Seater Transport (1 Off)","Monthly",{"v":1,"d":"1.00"},{"v":60,"d":"60.00"}]
[null,"1.15","Tools and testing equipment, and Detection Services","Monthly",{"v":1,"d":"1.00"},{"v":60,"d":"60.00"}]
[]
[null,null,"Sub-total Item 1 (Preliminaries and General) carried to Summary"]
[]
[null,null,"ITEM 2"]
[null,2,"SITE CREW "]
[]
[null,2.1,"As and when required"]
[]
[null,"2.1.1","Electrician ((20 hours per month) with LV and MV termination skills) (2 Off)","Hours/Person",{"v":2,"d":"2.00"},{"$f":"5*20*12","v":{"v":1200,"d":"1,200.00"}}]
[null,"2.1.2","Boilermaker (10 hours Quarterly)  (1 Off)",{"$f":"+D37","v":"Hours/Person"},{"v":1,"d":"1.00"},{"$f":"10*4*5","v":{"v":200,"d":"200.00"}}]
[null,"2.1.3","Supervisor (20 hours per month) (1 Off)",{"$f":"+D38","v":"Hours/Person"},{"v":1,"d":"1.00"},{"$f":"20*12*5","v":{"v":1200,"d":"1,200.00"}}]
[null,"2.1.4","Safety officer (20 hours per month) (1 Off)",{"$f":"+D39","v":"Hours/Person"},{"v":1,"d":"1.00"},{"$f":"20*12*5","v":{"v":1200,"d":"1,200.00"}}]
[null,"2.1.5","General workers (20 hours per month)  (5 Off)",{"$f":"+D40","v":"Hours/Person"},{"v":5,"d":"5.00"},{"$f":"5*20*12","v":{"v":1200,"d":"1,200.00"}}]
[null,"2.1.6","Technician (20 hours per month) (Earthing Services) (2 Off)",{"$f":"+D41","v":"Hours/Person"},{"v":2,"d":"2.00"},{"$f":"5*20*12","v":{"v":1200,"d":"1,200.00"}}]
[]
[null,2.2,"Permanent crew for Battery Maintenance (Daily)"]
[]
[null,"2.2.1","Electrician (1 Off)",{"$f":"D42","v":"Hours/Person"},{"v":1,"d":"1.00"},{"v":8064,"d":"8,064.00"}]
[null,"2.2.2","Supervisor (1 Off)",{"$f":"D46","v":"Hours/Person"},{"v":1,"d":"1.00"},{"v":8064,"d":"8,064.00"}]
[null,"2.2.3","Safety Officer (1 Off)",{"$f":"D47","v":"Hours/Person"},{"v":1,"d":"1.00"},{"v":8064,"d":"8,064.00"}]
[null,"2.2.4","General workers (4 Off)",{"$f":"D46","v":"Hours/Person"},{"v":4,"d":"4.00"},{"v":8064,"d":"8,064.00"}]
[null,"2.2.5","Driver (1 Off)",{"$f":"D49","v":"Hours/Person"},{"v":1,"d":"1.00"},{"v":8064,"d":"8,064.00"}]
[]
[null,2.3,"Overtime"]
[]
[null,"2.3.1","Supervisor (1 Off)",{"$f":"D49","v":"Hours/Person"},{"v":1,"d":"1.00"},{"v":1200,"d":"1,200.00"}]
[null,"2.3.2","Safety Officer (1 Off)",{"$f":"D54","v":"Hours/Person"},{"v":1,"d":"1.00"},{"v":1200,"d":"1,200.00"}]
[]
[null,null,"Sub-total Item 2 (Site Crew) carried to Summary"]
[]
[null,null,"ITEM 3"]
[null,3,"SUPPLY OF CABLES"]
[]
[null,3.1,"Supply of cables  on an as and when required basis","Item",{"v":1,"d":"1.00"},{"v":1,"d":"1.00"}]
[]
[null,null,"Sub-total Item 3 (Supply of Cables) carried to Summary"]
[]
[null,null,"ITEM 4"]
[null,4,"SUPPLY OF BUSBARS"]
[]
[null,4.1,"Supply of busbars maintenance","Item",{"v":1,"d":"1.00"},{"v":1,"d":"1.00"}]
[]
[null,null,"Sub-total Item 4 (Supply of Busbars) carried to Summary"]
[]
[]
[null,null,"FINAL SUMMARY"]
[]
[null,"ITEM 1","PRELIMINARIES AND GENERAL"]
[]
[null,"ITEM 2","SITE CREW"]
[]
[null,"ITEM 3","SUPPLY OF CABLES"]
[]
[null,"ITEM 4","SUPPLY OF BUSBARS"]
[]
[null,null,"Final Summary Total (Excl VAT)"]

{"sheet":"Cables","index":1,"n_rows":336,"n_cols":7,"rows_kept":336,"merged":[[335,1,335,5]]}
[]
[{"$nulls":6},"2025-05-30"]
[]
[null,{"$f":"Bill!B4","v":"PROJECT: SUPPLY, INSTALLATION AND REPAIRS OF CABLES AT KUSILE POWER STATION ON AN AS AND WHEN REQUIRED BASIS FOR THE PERIOD OF FIVE (5) YEARS REV. 3"}]
[]
[null,"ITEM NO.","DESCRIPTION","UNIT","QUANTITY","RATE","AMOUNT"]
[]
[null,null,"ITEM 3"]
[null,null,"SUPPLY OF CABLES "]
[]
[null,3.1,"Cable Joints"]
[null,"3.1.1","Cable Joint Kits – 1.5-4mm","ea",250]
[null,"3.1.2","Cable Joint Kits – 2.5-4mm","ea",250]
[null,"3.1.3","Cable Joint Kits – 4-10mm","ea",250]
[null,"3.1.4","Cable Joint Kits – 6-16mm","ea",250]
[null,"3.1.5","Cable Joint Kits – 10-16mm","ea",250]
[null,"3.1.6","Cable Joint Kits – 16-25mm","ea",250]
[null,"3.1.7","Cable Joint Kits – 26-34mm","ea",250]
[null,"3.1.8","Cable Joint Kits – 35-50mm","ea",250]
[null,"3.1.9","Cable Joint Kits – 50-95mm","ea",250]
[null,"3.1.10","Cable Joint Kits – 95-150mm","ea",250]
[null,"3.1.11","Cable Joint Kits – 150-240mm","ea",250]
[]
[null,3.2,"Low voltage cable terminations (600V-3.3KV )"]
[null,null,"Ablution: 3m x 6m - 6 Toilet Split M/F (1 Off)","ea",250]
[null,4.2,"2.5mm","ea",250]
[null,null,"4mm","ea",250]
[null,5.2,"10mm","ea",250]
[null,"3.2.5","16mm","ea",250]
[null,"3.2.6","25mm","ea",250]
[null,"3.2.7","35mm","ea",250]
[null,"3.2.8","50mm","ea",250]
[null,"3.2.9","70mm","ea",250]
[null,"3.2.10","95mm","ea",250]
[null,"3.2.11","150mm","ea",150]
[null,"3.2.12","180mm","ea",150]
[]
[null,3.3,"Low Voltage Heat Shrink Joints up to (1000V)"]
[null,"3.3.1","1.5mm","ea",250]
[null,"3.3.2","2.5mm","ea",250]
[null,"3.3.3","4mm","ea",250]
[null,"3.3.4","10mm","ea",250]
[null,"3.3.5","16mm","ea",250]
[null,"3.3.6","25mm","ea",250]
[null,"3.3.7","35mm","ea",250]
[null,"3.3.8","50mm","ea",250]
[null,"3.3.9","70mm","ea",250]
[null,"3.3.10","95mm","ea",250]
[null,"3.3.11","150mm","ea",150]
[null,"3.3.12","180mm","ea",150]
[null,"3.3.13","240mm","ea",150]
[]
[null,3.4,"Low Voltage Resin Joints (1000V)"]
[null,"3.4.1","1.5mm","ea",200]
[null,"3.4.2","2.5mm","ea",200]
[null,"3.4.3","4mm","ea",200]
[null,"3.4.4","10mm","ea",200]
[null,"3.4.5","16mm","ea",200]
[null,"3.4.6","25mm","ea",200]
[null,"3.4.7","35mm","ea",200]
[null,"3.4.8","50mm","ea",200]
[null,"3.4.9","70mm","ea",200]
[null,"3.4.10","95mm","ea",200]
[null,"3.4.11","150mm","ea",100]
[null,"3.4.12","180mm","ea",100]
[null,"3.4.13","240mm","ea",100]
[]
[null,3.5,"Low Voltage Flame Retardant Resin Joints (1000V)"]
[null,"3.5.1","1.5mm","ea",200]
[null,"3.5.2","2.5mm","ea",200]
[null,"3.5.3","4mm","ea",200]
[null,"3.5.4","10mm","ea",200]
[null,"3.5.5","16mm","ea",200]
[null,"3.5.6","25mm","ea",200]
[null,"3.5.7","35mm","ea",200]
[null,"3.5.8","50mm","ea",200]
[null,"3.5.9","70mm","ea",200]
[null,"3.5.10","95mm","ea",200]
[null,"3.5.11","150mm","ea",100]
[null,"3.5.12","180mm","ea",100]
[null,"3.5.13","240mm","ea",100]
[]
[null,3.6,"Master sheath flexible trailing cable joints"]
[null,"3.6.1","1.5mm","ea",150]
[null,"3.6.2","2.5mm","ea",150]
[null,"3.6.3","4mm","ea",150]
[null,"3.6.4","10mm","ea",150]
[null,"3.6.5","16mm","ea",150]
[null,"3.6.6","25mm","ea",150]
[null,"3.6.7","35mm","ea",150]
[null,"3.6.8","50mm","ea",150]
[null,"3.6.9","70mm","ea",150]
[null,"3.6.10","95mm","ea",150]
[null,"3.6.11","150mm","ea",100]
[null,"3.6.12","180mm","ea",100]
[null,"3.6.13","240mm","ea",100]
[]
[null,3.7,"12KV MV Cable HeatShrink Termination XLPE 3 - Core Indoor"]
[null,"3.7.1","25-70mm","ea",100]
[null,"3.7.2","50-120mm","ea",100]
[null,"3.7.3","95-185mm","ea",100]
[null,"3.7.4","185-300mm","ea",50]
[]
[null,3.8,"12KV MV Cable HeatShrink Termination XLPE 3 - Core Outdoor"]
[null,"3.8.1","25-70mm","ea",100]
[null,"3.8.2","50-120mm","ea",100]
[null,"3.8.3","95-185mm","ea",100]
[null,"3.8.4","185-300mm","ea",50]
[]
[null,3.9,"12kV MV Cable HeatShrink Termination PILC 3 - Core Indoor"]
[null,"3.9.1","25-70mm","ea",100]
[null,"3.9.2","50-120mm","ea",100]
[null,"3.9.3","95-185mm","ea",100]
[null,"3.9.4","185-300mm","ea",50]
[]
[null,{"v":3.1,"d":"3.10"},"12kV MV Cable HeatShrink Termination PILC 3 - Core Outdoor"]
[null,"3.10.1","25-70mm","ea",100]
[null,"3.10.2","50-120mm","ea",100]
[null,"3.10.3","95-185mm","ea",100]
[null,"3.10.4","185-300mm","ea",50]
[]
[null,3.11,"12kV MV Cable Heat Shrink Termination XLPE 1 - Core Indoor"]
[null,"3.11.1","25-70mm","ea",100]
[null,"3.11.2","50-120mm","ea",100]
[null,"3.11.3","95-185mm","ea",100]
[null,"3.11.4","185-300mm","ea",50]
[]
[null,3.12,"12kV MV Cable Heat Shrink Termination XLPE 1 - Core Outdoor"]
[null,"3.12.1","25-70mm","ea",100]
[null,"3.12.2","50-120mm","ea",100]
[null,"3.12.3","95-185mm","ea",100]
[null,"3.12.4","185-300mm","ea",50]
[]
[null,3.13,"12KV MV Cable Heat Shrink Termination PILC 1 - Core Indoor"]
[null,"3.13.1","25-70mm","ea",100]
[null,"3.13.2","50-120mm","ea",100]
[null,"3.13.3","95-185mm","ea",100]
[null,"3.13.4","185-300mm","ea",50]
[]
[null,3.14,"12KV MV Cable Heat Shrink Termination PILC 1 - Core Outdoor"]
[null,"3.14.1","25-70mm","ea",100]
[null,"3.14.2","50-120mm","ea",100]
[null,"3.14.3","95-185mm","ea",100]
[null,"3.14.4","185-300mm","ea",50]
[]
[null,3.15," 12KV MV Cable Heat Shrink Trifurcating Kit 3 - Core"]
[null,"3.15.1","25-70mm","ea",100]
[null,"3.15.2","50-120mm","ea",100]
[null,"3.15.3","95-185mm","ea",100]
[null,"3.15.4","185-300mm","ea",50]
[]
[null,3.16,"12kV MV Cable Heat Shrink Trifurcating Kit 3 - Core"]
[null,"3.16.1","25-70mm","ea",100]
[null,"3.16.2","50-120mm","ea",100]
[null,"3.16.3","95-185mm","ea",100]
[null,"3.16.4","185-300mm","ea",50]
[]
[null,3.17,"Core Medium Voltage Joint"]
[null,"3.17.1","7.2 - 36kV XLPE 3 - Core Medium Voltage joint kit","ea",100]
[null,"3.17.2","7.2 - 36kV XLPE 1 - Core Medium Voltage joint kit","ea",100]
[null,"3.17.3","S.I.R.P Shrink Insulated Resin Protected Joint (12 to 36kV)","ea",100]
[null,"3.17.4","7.2 - 36kV PILC 1 - Core Medium Voltage joint kit","ea",100]
[null,"3.17.5","7.2 - 36kV PILC 3 - Core Medium Voltage joint kit","ea",100]
[]
[null,3.18,"Galvanized Saddles"]
[null,"3.18.1","Galvanised Saddle Straps – 1.5mm","ea",250]
[null,"3.18.2","Galvanised Saddle Straps – 2.5mm","ea",250]
[null,"3.18.3","Galvanised Saddle Straps – 4mm","ea",250]
[null,"3.18.4","Galvanised Saddle Straps – 6mm","ea",250]
[null,"3.18.5","Galvanised Saddle Straps – 10mm","ea",250]
[null,"3.18.6","Galvanised Saddle Straps – 20mm","ea",250]
[null,"3.18.7","Galvanised Saddle Straps – 25mm","ea",250]
[null,"3.18.8","Galvanised Saddle Straps – 35mm","ea",250]
[null,"3.18.9","Galvanised Saddle Straps – 50mm","ea",250]
[null,"3.18.10","Galvanised Saddle Straps – 70mm","ea",250]
[null,"3.18.11","Galvanised Saddle Straps – 95mm","ea",250]
[null,"3.18.12","Galvanised Saddle Straps – 150mm","ea",100]
[null,"3.18.13","Galvanised Saddle Straps – 240mm","ea",100]
[]
[null,3.19,"Racking"]
[]
[null,null,"Supply and Install Cable Tray and Accessories"]
[null,null,"Cold drawn high tensile galvanized wire mesh cable tray (O-L GRIDSPAN GS 50x50) fixed in all positions, etc., to all heights above floor level, etc and to all areas. Complete with splice clamp sets, hold down brackets, bolts, nuts and washers, etc."]
[]
[null,"3.19.1","100mm x 75mm x 3m","m",1000]
[null,"3.19.2","150mm x 75mm x 3m","m",1000]
[null,"3.19.3","300mm x 75mm x 3m","m",1000]
[null,"3.19.4","600mm x 75mm x 3m","m",500]
[]
[null,{"v":3.2,"d":"3.20"},"Galvanized Wire Mesh Cable"]
[null,null,"Cold drawn high tensile galvanized wire mesh cable tray fittings / accessories normal bending radius"]
[]
[null,"3.20.1","100mm Wide x 75mm 90 degree horizontal bend","ea",150]
[null,"3.20.2","100mm Wide x 75mm 90 degree external/int bend","ea",150]
[null,"3.20.3","150mm Wide x 75mm 90 degree horizontal bend","ea",150]
[null,"3.20.4","150mm Wide x 75mm 90 degree external/int bend","ea",150]
[null,"3.20.5","300mm Wide x 75mm 90 degree horizontal bend","ea",150]
[null,"3.20.6","300mm Wide x 75mm 90 degree external/int bend","ea",150]
[null,"3.20.7","600mm Wide x 75mm 90 degree horizontal bend","ea",150]
[null,"3.20.8","600mm Wide x 75mm 90 degree external/int bend","ea",150]
[null,"3.20.9","600mm Wide x 75mm tee","ea",150]
[]
[null,3.21,"Cable Support System"]
[null,null,"Galvanized steel channel forming frame support complete with bolts, spring nuts, nuts and washers, fixed in all positions, etc., to all heights above floor level, etc and to all areas."]
[]
[null,"3.21.1","41.3mm x 41.3mm x 2.5mm Thick (O-L 1000)","m",50]
[null,"3.21.2","82.6mm x 41.3mm x 2.5mm Thick (O-L 1001)","m",50]
[null,"3.21.3","41.3mm x 41.3mm x 2.5mm Thick (O-L 1000) - covers F1184","m",50]
[]
[null,3.22,"Galvanized Conduit"]
[null,null,"Surface mounted and fixed in all positions, etc., to all heights above floor level, etc and to all areas."]
[]
[null,"3.22.1","20mm Diameter","m",1000]
[null,"3.22.2","25mm Diameter","m",1000]
[null,"3.22.3","50mm Diameter","m",1000]
[]
[null,3.23,"Wiring Channels"]
[null,null,"Galvanized steel channel complete with galvanized cover surface mounted and fixed in all positions, etc., to all heights above floor level, etc and to all areas."]
[]
[null,"3.23.1","41.3 x 41.3 x 1.6mm Thick (O-L 2000)","m",1000]
[null,"3.23.1","76.2 x 76.2 x 2.1mm Thick (O-L 8000)","m",1000]
[]
[null,3.24,"Miscellaneous Steelwork"]
[null,null,"Painted steel for support of racking, including all necessary fixing, bolts, nuts, washers, welding, etc and holes, notches, etc fixed in all positions, etc., to all heights above floor level, etc and to all areas."]
[]
[null,"3.24.1","25mm x 25mm x 5mm Angle section","m",250]
[null,"3.24.2","50mm x 50mm x 6mm Angle section","m",250]
[null,"3.24.3","76mm x 38mm x 6mm Channel iron","m",250]
[]
[null,3.25,"EARTHING"]
[]
[null,"3.25.1","Test of earth mat to reference point","ea",10]
[]
[null,null,"Earthing Cables"]
[null,"3.25.2","16mm² BCEW","m",200]
[null,"3.25.3","70mm² BCEW","m",200]
[null,"3.25.4","150mm² KWENA","m",200]
[null,"3.25.5","4mm² G/Y PVC coverd","m",200]
[null,"3.25.6","6mm² G/Y PVC coverd","m",200]
[null,"3.25.7","10mm² G/Y PVC coverd","m",200]
[null,"3.25.8","16mm² G/Y PVC coverd","m",200]
[null,"3.25.9","70mm² G/Y PVC covered","m",200]
[null,"3.25.10","50 x 3 mm Flat Cu +saddles","m",200]
[]
[null,null,"Alluminium earthing"]
[null,"3.25.11","Cable elect:95 mm2;earth;1 c;kwena g/y pvc coverd","m",1000]
[null,"3.25.12","Cable elect:70 mm2;earth;1 c;kwena g/y pvc coverd","m",1000]
[null,"3.25.13","Cable elect:50 mm2;earth;1 c;kwena g/y pvc coverd","m",1000]
[null,"3.25.14","Cable elect:35 mm2;earth;1 c;kwena g/y pvc coverd","m",1000]
[null,"3.25.15","Connector: type: earthing transformer; dimensions: sq 912 mm; material: Cu flexible; suppl p/n: 7s046619; laminated silver plated","m",1000]
[null,"3.25.16","Cable elect:190 mm2;earth;1 c;kwena g/y pvc coverd","m",1000]
[null,"3.25.17","Cable elect:16 mm2;earth;1 c;kwena g/y pvc coverd","m",1000]
[null,"3.25.18","Cable elect:150 mm2;earth;1 c;kwena g/y pvc coverd","m",1000]
[null,"3.25.19","Cable elect:120 mm2;earth;1 c;kwena g/y pvc coverd","m",1000]
[]
[null,3.26,"Flexibles"]
[null,"3.26.1","Connector: type: earthing transformer; dimensions: sq 912 mm; material: Cu flexible; suppl p/n: 7s046619; laminated silver plated","ea",60]
[null,"3.26.2","Connector: type: generator transformer; dimensions: sq 900 mm; material: Cu flexible; suppl p/n: 0138g050; ","ea",60]
[null,"3.26.3","Connector: type: generator; dimensions: sq 528 mm; material: Cu flexible; suppl p/n: 0143g193;","ea",60]
[]
[null,3.27,"Builders work"]
[null,null,"Earthworks"]
[]
[null,"3.27.1","Re-excavation over existing cables, pipes and sleeves, etc. in soft material not exceeding 2000mm deep for cable trench, sleeve pipe, etc including risk of collapse, keeping free of water, river sand bed, backfilling, compacting and disposal of surplus material, all to the Engineer's specification.","m3",1000]
[null,"3.27.2","Remove and replace concrete cover slabs","ea",100]
[null,"3.27.3","Print and Install cable identification labels","ea",1000]
[]
[null,3.28,"Types of cables to be supplied "]
[]
[null,"3.28.1","Cu 120mm2 (marked) 1c pvc reo pvc(lh)  blk/blu • lohal sans 1507 + 600/1000v","m ",500]
[null,"3.28.2","Cu 150mm2 (marked) 1c pvc red pvc(lh)  blk/blu • lohal sans 1507 + eskom 32 -1272 600/1000v ","m ",500]
[null,"3.28.3","Cu 185mm2(marked) 1c pvc red pvc(lh)  blk/blu • lohal sans 1507 + 600/1000v","m ",500]
[null,"3.28.4","Cu 240mm2 (marked) 1c pvc red pvc(lh)  blk/blu • lohal sans 1507 + eskom 32 •1272 600/1oodv ","m ",500]
[null,"3.28.5","Cu 500mm2 (marked) 1c pvc red pvc(lh)  blk/blu • lohal sans 1507 + 600/1000v","m ",500]
[null,"3.28.6","Cu 4mm2 3c pvc (marked) pvc(lh) swa pvc(lh) blk/blu (eskom) • sans 1507 60d/1000v lohal ","m ",1500]
[null,"3.28.7","Cu 35mm2 3c sh pvc (marked) pvc(lh) blkiblu (eskom) • sans 1507 600/1000v lohal ","m ",1500]
[null,"3.28.8","Cu 70mm2 (marked) 3c sh pvc (marked)   pvc{lh) blk/blu (eskom) • sans 1507 600/1000v lohal ","m ",1500]
[null,"3.28.9","Cu 2.5mm2 4c pvc (marked) pvc(lh) blk/blu (eskom) • sans 1507 600/1000v lohal ","m ",500]
[null,"3.28.10","Cu 35mm2 4c pvc (marked) pvc(lh) blkiblu (eskom) • sans 1507 600/1ooov lohal        ","m ",1500]
[null,"3.28.11","Cu 70mm2 4c pvc (marked) pvc(lh) blkiblu (eskom) • sans 1507 600/1000v lohal       ","m ",1500]
[null,"3.28.12","Cu 95mm2 4c pvc (marked) pvc(lh) blkiblu (eskom) • sans 1507 600/1000v lohal        ","m ",1500]
[null,"3.28.13","Cu 1.5mm2 3c pvc (marked) pvc(lh)    swa pvc(lh) blk/blu (eskom)- sans 1507 600/1000v lohal ","m ",500]
[null,"3.28.14","Cu 2.5mm2 3c pvc (marked) pvc(lh)    swa pvc(lh) blk/blu (eskom)- sans 1507 600/1000v lohal ","m ",500]
[null,"3.28.15","Cu 4mm2 3c pvc (marked) pvc(lh)  swa pvc(lh) blk/blu (eskom)- sans 1507 600/1000v lohal  ","m ",500]
[null,"3.28.16","Cu 6mm2 3c pvc (marked) pvc(lh)  swa pvc(lh) blk/blu (eskom)- sans 1507 600/1000v lohal ","m ",500]
[null,"3.28.17","Cu 10mm2 3c pvc (marked) pvc(lh) swa pvc(lh) blk/blu (eskom)- sans 1507 600/1000v lohal ","m ",500]
[null,"3.28.18","Cu 16mm2 3c pvc (marked) pvc(lh) swa pvc(lh) blk/blu (eskom)- sans 1507 600/1000v lohal ","m ",500]
[null,"3.28.19","Cu 120mm2 3c pvc (marked) pvc(lh) swa pvc(lh) blk/blu (eskom)- sans 1507 600/1000v lohal ","m ",500]
[null,"3.28.20","Cu 185mm2 3c pvc (marked) pvc(lh) swa pvc(lh) blk/blu (eskom)- sans 1507 600/1000v lohal  ","m ",500]
[null,"3.28.21","Cu 240mm2 3c pvc (marked) pvc(lh) swa pvc(lh) blk/blu (eskom)- sans 1507 600/1000v lohal  ","m ",500]
[null,"3.28.22","Cu 400mm2 3c pvc (marked) pvc(lh) swa pvc(lh) blk/blu (eskom)- sans 1507 600/1000v lohal  ","m ",1500]
[null,"3.28.23","Cu 16mm2 4c sh pvc (marked) pvc (lh) swa pvc (lh) blk/blu (eskom) sans 1507 600/1000v lohal ","m ",1500]
[null,"3.28.24","Cu 25mm2 4c sh pvc (marked) pvc (lh) swa pvc (lh) blk/blu (eskom) sans 1507 600/1000v lohal ","m ",1500]
[null,"3.28.25","Cu 35mm2 4c sh pvc (marked) pvc (lh) swa pvc (lh) blk/blu (eskom) sans 1507 600/1000v lohal ","m ",1500]
[null,"3.28.26","Cu 70mm2 4c sh pvc (marked) pvc (lh) swa pvc (lh) blk/blu (eskom) sans 1507 600/1000v lohal ","m ",1500]
[null,"3.28.27","Cu 6mm2 pvc blk pvc(lh) grn/yel sdi - sans 1507 600/1000v","m ",500]
[null,"3.28.28","Cu 16mm2 pvc blk pvc(lh) grn/yel sdi - sans 1507 600/1000v house wire. ","m ",1500]
[null,"3.28.29","Cu 25mm2 pvc blk pvc(lh) grn/yel (eskom bvv01kcm) sdi - sans 1507 600/1000v single main. ","m ",1500]
[null,"3.28.30","Cu 35mm2 pvc blk pvc(lh) grn/yel sdi - sans 1507 600/1000v single main. ","m ",1500]
[null,"3.28.31","Cu 70mm2 pvc blk pvc(lh) grn/yel sdi - sans 1507 600/1000v single main. ","m ",1500]
[null,"3.28.32","Cu 2.5 mm2 3c pvc (marked) pvc (lh) blk/blu (eskom) sans 1507 sans 1507 600/1000v lohal ","m ",500]
[null,"3.28.33","Cu 1.5 mm2 3c pvc (marked) pvc (lh) blk/blu (eskom) sans 1507 sans 1507 600/1000v lohal ","m ",500]
[null,"3.28.34","Cu 10 mm2 3c pvc (marked) swa pvc (lh) blk/blu (eskom) sans 1507 sans 1507 600/1000v lohal ","m ",500]
[null,"3.28.35","Cu 50 mm2 (marked) 3c sh pvc (marked) swa pvc (lh) blk/blu (eskom) sans 1507 sans 1507 600/1000v lohal ","m ",500]
[null,"3.28.36","Cu 1.5 mm2 3c pvc (marked) pvc (lh) blk/blu (eskom) sans 1507 sans 1507 600/1000v lohal ","m ",1000]
[null,"3.28.37","Cu 4mm2 4c pvc (marked) pvc (lh) swa blk/blu (eskom) sans 1507 sans 1507 600/1000v lohal ","m ",1000]
[null,"3.28.38","Cu 6mm2 4c pvc (marked) pvc (lh) swa blk/blu (eskom) sans 1507 sans 1507 600/1000v lohal ","m ",1000]
[null,"3.28.39","Cu 6mm2 4c pvc (marked) pvc (lh) swa blk/blu (eskom) sans 1507 sans 1507 600/1000v lohal ","m ",1000]
[null,"3.28.40","Cu 10mm2 4c pvc (marked) pvc (lh) swa blk/blu (eskom) sans 1507 sans 1507 600/1000v lohal ","m ",1000]
[null,"3.28.41","Cu 4mm2 3c pvc (marked) pvc (lh) swa pvc (lh) blk/blu (eskom) sans 1507 sans 1507 600/1000v lohal control cable ","m ",1000]
[null,"3.28.42","Cu 6mm2 3c pvc (marked) pvc (lh) swa pvc (lh) blk/blu (eskom) sans 1507 sans 1507 600/1000v lohal control cable ","m ",1000]
[null,"3.28.43","Cu 25mm2 3c pvc (marked) pvc (lh) sh pvc (lh) blk/blu (eskom) sans 1507 sans 1507 600/1000 lohal control cable ","m ",1500]
[null,"3.28.44","Cu 25mm2 3c pvc (marked) pvc (lh) sh pvc (lh) blk/blu (eskom) sans 1507 sans 1507 600/1000v lohal control cable ","m ",1500]
[null,"3.28.45","Cu 50mm2 4c pvc (marked) pvc (lh) sh pvc (lh) blk/blu (eskom) sans 1507 sans 1507 600/1000v lohal control cable ","m ",500]
[null,"3.28.46","Cu 35mm2 3c pvc xlpe is (0.2) pvc (lh) blk/blu vultex sans 1339 type b + eskom 34 -1624 3.8/6.6 kv","m ",1500]
[null,"3.28.47","Cu 70mm2 3c pvc xlpe is (0.2) pvc (lh) blk/blu vultex sans 1339 type b + eskom 34 -1624 3.8/6.6 kv  ","m ",1500]
[null,"3.28.48","Cu 95 mm2 3c pvc xlpe is (0.2) pvc (lh) blk/blu vultex sans 1339 type b + eskom 34 -1624 3.8/6.6 kv","m ",1500]
[null,"3.28.49","Cu 95 mm2 3c pvc xlpe is (0.2) pvc (lh) swa blk/blu vultex sans 1339 type b + eskom 34 -1624 3.8/6.6 kv ","m ",1500]
[null,"3.28.50","Cu 185 mm2 3c pvc xlpe is (0.2) pvc (lh) blk/blu vultex sans 1339 type b + eskom 34 -1624 3.8/6.6 kv","m ",500]
[null,"3.28.51","Cu 300 mm2 1c pvc xlpe is (0.2) pvc (lh) blk/blu vultex sans 1339 type b + eskom 34 -1624 3.8/6.6 kv","m ",500]
[null,"3.28.52","Cu 95 mm2 3c pvc xlpe is (0.1) pvc (lh) swa blk/blu vultex sans 1339 type b + eskom 34 -1624 12.7/22kv ","m ",1500]
[null,"3.28.53","Cu 120 mm2 3c pvc xlpe is (0.1) pvc (lh) swa blk/blu vultex sans 1339 type b + eskom 34 -1624 12.7/22kv ","m ",500]
[null,"3.28.54","Cu 70 mm2 1c pvc xlpe Cut (0.3) pvc (lh) swa blk/blu vultex sans 1339 type b + eskom 34 -1624 12.7/22kv ","m ",1500]
[null,"3.28.55","Cu 95 mm2 1c pvc xlpe Cut (0.3) pvc (lh) swa blk/blu vultex sans 1339 type b + eskom 34 -1624 12.7/22kv ","m ",1500]
[null,"3.28.56","Cu 150 mm2 3c pvc xlpe Cut (0.3) pvc (lh) blk/blu vultex sans 1339 type b + eskom 34 -1624 12.7/22kv ","m ",500]
[null,"3.28.57","Cu 240 mm2 1c pvc xlpe Cut (0.2) pvc (lh) blk/blu vultex sans 1339 type b + eskom 34 -1624 12.7/22kv ","m ",500]
[null,"3.28.58","Cu 300 mm2 1c pvc xlpe Cut (0.2) pvc (lh) blk/blu vultex sans 1339 type b + eskom 34 -1624 12.7/22kv ","m ",500]
[null,"3.28.59","Cu 400 mm2 1c pvc xlpe Cut (0.2) pvc (lh) blk/blu vultex sans 1339 type b + eskom 34 -1624 12.7/22kv ","m ",500]
[null,"3.28.60","Cu 500 mm2 1c pvc xlpe Cut (0.2) pvc (lh) blk/blu vultex sans 1339 type b + eskom 34 -1624 12.7/22kv ","m ",500]
[null,"3.28.61","Cu 50 mm2 1c pvc xlpe is (0.2) pvc (lh) blk/blu vultex sans 1339 type b + eskom 34 -1624 3.8/6.6 kv","m ",500]
[null,"3.28.62","Cu 95 mm2 (marked) 4c pvc (marked) pvc (lh) swa pvc (lh) blk/blu lohal sans 1507  + eskom 32 - 1272  600/1000 kv  ","m ",1000]
[null,"3.28.63","Cu 6mm2 (marked) 4c pvc (marked) pvc (lh) swa pvc (lh) blk/blu sans 1507  + eskom 32 - 1272  600/1000v kv lohal  ","m ",500]
[null,"3.28.64","Cu 150mm2 (marked) 4c pvc (marked) pvc (lh) swa pvc (lh) blk/blu lohal sans 1507  + eskom 32 - 1272  600/1000 kv   ","m ",500]
[null,"3.28.65","Cu 150mm2 (marked) 4c pvc (lh) swa pvc (lh) blk/blu sans 1507  + eskom 32 - 1272  600/1000 kv  ","m ",500]
[]
[null,"TOTAL AMOUNT (Excl. VAT)"]

{"sheet":"Busbars","index":2,"n_rows":39,"n_cols":10,"rows_kept":39,"merged":[[5,1,6,1],[5,2,6,2],[5,3,6,3],[5,4,6,4],[5,5,6,5],[5,6,6,6],[5,7,6,7],[5,8,6,8],[5,9,6,9],[38,1,38,8]]}
[]
[{"$nulls":9},"2025-05-30"]
[]
[null,"PROJECT: SUPPLY, INSTALLATION AND REPAIRS OF CABLES AT KUSILE POWER STATION ON AN AS AND WHEN REQUIRED BASIS FOR THE PERIOD OF FIVE (5) YEARS REV. 3"]
[]
[null,"Plant System","Sub-System ","Spare Description","Detailed Spare Description & Specification ","OEM","OEM Part No.","Quantity","Rate","Amount"]
[]
[null,"Switchgear","MV Switchgear","Cover","End Cover for Busbars without holes","ABB","1VL7605922P0108",1]
[null,"Switchgear","MV Switchgear","Cover","BB Shroud cover with 2x80x10 Hole","ABB","1VL7605922P0105",1]
[null,"Switchgear","MV Switchgear","Cover","Protection Shroud","ABB","1vcr006456f0001",1]
[null,"Switchgear","MV Switchgear","Bushing","BUSHING (1250A) 25KA FOR UNIGEAR CUBICLE","ABB","1VYN304001-A",1]
[null,"Switchgear","MV Switchgear","Bushing","BUSHING 1250 40K","ABB","1VYN205001-H",1]
[null,"Switchgear","MV Switchgear","Bushing","BUSHING-2000A/VHE12S/UNISAFE","ABB","GCE8004944R0101",1]
[null,"Switchgear","MV Switchgear","Bushing","Bushing for 3150A (Aluminum Solution)","ABB","1VYN204001-CT",1]
[null,"Switchgear","MV Switchgear","Bushing","BUSHING 1250 40KA UG 650W","ABB","PTMVT10041-A",1]
[null,"Switchgear","MV Switchgear","Bushing","BUSHING-1600A UniGear ZS1 2kv 1600A","ABB","1VYN304001-JX",1]
[null,"Switchgear","MV Switchgear","Bushing","PT BUSHING","ABB","1VYN304001-HE",1]
[null,"Switchgear","MV Switchgear","Pin","CONTACT PIN (DIA 35mm L-72 mm)","ABB"," 1VYN404050-396",1]
[null,"Switchgear","MV Switchgear","Pin","CONTACT PIN (DIA 35 L-92 mm)","ABB","1VYN404050-015",1]
[null,"Switchgear","MV Switchgear","Pin","CONTACT PIN (DIA 35xL=77)","ABB"," 1VYN404050-256",1]
[null,"Switchgear","MV Switchgear","Pin","CONTACT PIN (DIA 55mm,length=107mm)","ABB"," 1VYN404050-016",1]
[null,"Switchgear","MV Switchgear","Pin","CONTACT PIN (DIA 55mm,length=77mm)","ABB","1VYN404050-627",1]
[null,"Switchgear","MV Switchgear","Pin","CONTACT PIN (DIA 79mm)","ABB","1VYN404050-395",1]
[null,"Switchgear","MV Switchgear","Pin","Contact Pin Rd 109 L=107","ABB","1VYN404050-057",1]
[null,"Switchgear","MV Switchgear","Pin","Contact Pin,DIA 108mm 2500A","ABB","1VYN404050-472",1]
[null,"Switchgear","MV Switchgear","Pin","Contact Pin Dia.109mm","ABB","1VYN404050-394",1]
[null,"Switchgear","MV Switchgear","Bushing","Intermediate Bushing Top Side","ABB","1VCR009317F0001",1]
[null,"Switchgear","MV Switchgear","Bushing","Interpanel Bushing 35/95kV BIL","ABB"," GCE0931306P0100",1]
[null,"Switchgear","MV Switchgear","Bushing","INTERPANEL BUSHING kV(GCE0931305P0100)","ABB"," 1VYN304050-182",1]
[null,"Switchgear","MV Switchgear","Shroud","shroud (Cylindrical shape)","ABB","1VL7605815P0101",1]
[null,"Switchgear","MV Switchgear","Cover","END COVER FOR SHROUD,X10-SINGLE BUS","ABB"," 1VL7605922P0101",1]
[null,"Switchgear","MV Switchgear","Cover","END COVER FOR SHROUD","ABB"," GCE8007214P0101",1]
[null,"Switchgear","MV Switchgear","Cover","D COVER FOR SHROUD,2//D-SHAPE BUSBARS","ABB","1VYN304050-420",1]
[null,"Switchgear","MV Switchgear","Cover","PACKING PIECE 80X15","ABB","GCE8000910P0101",1]
[null,"Switchgear","MV Switchgear","Cover","BLACK COVER FOR BUSHING","ABB","GCE8003900P010",1]
[null,"Switchgear","MV Switchgear","Ring","RUBBER RING 1x80x10 R5","ABB","GCE8010074P0104",1]
[null,"Switchgear","MV Switchgear","Ring","RUBBER RING 2x80x10 R5","ABB","GCE8010074P0103",1]
[null,"Switchgear","MV Switchgear","Support","BUSBAR SUPPORT 2XD100","ABB","GCE0931316P0100",1]
[null,"TOTAL AMOUNT (Excl. VAT)"]

{"sheet":"Tools,Equ & Detection Services","index":3,"n_rows":40,"n_cols":6,"rows_kept":40,"merged":[[2,1,2,5],[33,1,33,4],[37,1,37,4],[39,1,39,4]]}
[]
[]
[null,"1.12 TOOLS AND EQUIPMENT"]
[null,"Description","Unit","Quantity","Price","Total"]
[null,"Cable preparation"]
[null,"Cable strippers","Sum",1]
[null,"Sheath cuttters","Sum",1]
[null,"Insulation removal tools","Sum",1]
[null,"Crimping tools"]
[null,"Hydrolic crimping tool suitable for LV and MV cable connector","Sum",1]
[null,"Heat Shrink Tools"]
[null,"Heat gun","Sum",1]
[null,"LPG gas (touch for heat shrinkable joints)","Sum",1]
[null,"Insulation Testing Equipment"]
[null,"Insulation resistance testers (megohmmeters) for LV and MV cables","Sum",1]
[null,"Voltage Detectors"]
[null,"Non-contact voltage detectors ","Sum",1]
[null,"Testers for ensuring cables are de-energized.","Sum",1]
[null,"Cable Fault Locators"]
[null,"Time domain reflectometers (TDR) ","Sum",1]
[null,"Hydraulic pressure testing kits for MV cables","Sum",1]
[null,"Cable Pulling Equipment"]
[null,"Cable pulling winches and accessories.","Sum",1]
[null,"Miscellaneous Tools"]
[null,"Pliers","Sum",1]
[null,"Screwdrivers","Sum",1]
[null,"Socket sets","Sum",1]
[null,"Cable locator"]
[null,"Cable locator","Sum",1]
[null,"Earth Continuity"]
[null,"Earth resistance tester","Sum",1]
[null,"Resistivity tester","Sum",1]
[null,"Digital Micro-Ohmmeter (Ductor Tester)","Sum",1]
[null,"TOTAL"]
[]
[null,"Rental"]
[null,"Thumper rental services","Monthly",{"$f":"5*12","v":60}]
[null,"TOTAL"]
[]
[null,"TOTAL AMOUNT (Excl. VAT)"]